bitfinex/quotes_ETHUSD_20250622
["timestamp","ask_amount","ask_price","bid_price","bid_amount"]
[1750554674844,7.81987209,2298.1,2298.0,4.35161009]
[1750554676041,7.81987209,2298.1,2297.9,4.35171547]
[1750554676223,7.81987209,2298.1,2298.0,4.35161009]
[1750554677123,0.7632,2298.8,2298.4,4.35085276]
[1750554677328,2.26,2298.7,2298.6,4.3504742]
[1750554677946,2.30387209,2298.7,2298.5,4.35057579]
[1750554678094,14.3860793,2298.7,2297.7,0.76]
[1750554678328,0.55,2298.4,2297.4,0.76]
[1750554678622,11.3132,2298.2,2297.8,4.35188959]
[1750554678822,12.30387209,2298.1,2297.8,4.35188959]
[1750554679084,7.80587209,2298.0,2297.8,4.35188959]
[1750554679443,10.55,2297.9,2297.0,4.35350457]
[1750554679669,0.04387209,2297.8,2297.7,4.35202209]
[1750554679853,10.0,2297.9,2297.8,4.35198885]
[1750554680180,0.8118,2298.6,2298.5,4.35066347]
[1750554680339,0.04387209,2298.9,2298.8,4.3500957]
[1750554680542,1.03891952,2299.0,2298.9,4.34990647]
[1750554680862,3.29891952,2299.0,2298.8,4.35001325]
[1750554681063,3.29891952,2299.0,2298.9,4.34990647]
[1750554681242,11.06391952,2299.0,2298.9,4.34990647]
[1750554681654,11.06391952,2299.0,2298.3,0.76]
[1750554681655,11.06391952,2299.0,2298.3,5.1109631]
[1750554681856,0.55,2298.8,2298.7,4.35028494]
[1750554682374,0.55,2298.8,2298.6,4.35039393]
[1750554682563,7.80487209,2298.7,2298.6,4.35039393]
[1750554683406,0.04387209,2298.7,2298.6,4.35039393]
[1750554683550,10.017,2298.7,2298.6,4.35039393]
[1750554684178,0.8118,2298.9,2298.6,4.35039393]
[1750554684382,10.014,2298.7,2298.5,4.35058288]
[1750554684596,10.014,2298.7,2298.6,4.3504742]
[1750554685776,10.014,2298.7,2298.0,0.76]
[1750554685777,0.55,2298.6,2298.0,0.76]
[1750554685959,0.04387209,2298.5,2298.4,4.35085276]
[1750554686153,0.04387209,2298.6,2297.9,10.0]
[1750554686384,2.26,2298.8,2298.3,0.7822]
[1750554686567,2.26,2298.8,2298.7,4.35028494]
[1750554689296,1.03891952,2299.0,2298.9,4.34990647]
[1750554689680,1.03891952,2299.0,2298.9,5.13210647]
[1750554689867,1.03891952,2299.0,2298.9,4.34990647]
[1750554690557,1.03891952,2299.0,2298.9,5.5988933]
[1750554690763,1.03891952,2299.0,2298.9,5.59889117]
[1750554690957,1.03891952,2299.0,2298.9,5.5553975]
[1750554691164,1.03891952,2299.0,2298.9,5.59889135]
[1750554692610,1.03891952,2299.0,2298.9,4.34990647]
[1750554693714,1.03891952,2299.0,2298.9,4.39340262]
[1750554694697,1.03891952,2299.0,2298.9,4.34990647]
[1750554695105,1.03891952,2299.0,2298.9,4.39340046]
[1750554696411,1.03891952,2299.0,2298.9,4.34990647]
[1750554696779,1.03891952,2299.0,2298.9,4.39340247]
[1750554697389,1.03891952,2299.0,2298.9,4.34990647]
[1750554698130,1.03891952,2299.0,2298.3,0.7502]
[1750554698326,2.99783868,2299.0,2298.9,4.34990647]
[1750554698691,2.99783868,2299.0,2298.8,4.34999524]
[1750554699226,2.99783868,2299.0,2298.9,4.34990647]
[1750554699837,1.03891952,2299.0,2298.9,4.34990647]
[1750554703054,1.03891952,2299.0,2298.9,4.39340152]
[1750554703219,1.03891952,2299.0,2298.9,8.5163401]
[1750554703401,1.03891952,2299.0,2298.9,8.47284505]
[1750554703713,1.03891952,2299.0,2298.9,18.47284505]
[1750554703928,10.45,2299.6,2299.5,4.34877147]
[1750554704106,0.8309,2300.4,2299.5,4.34877147]
[1750554704309,3.0209,2300.4,2300.3,4.34725905]
[1750554704613,2.19,2300.4,2300.3,4.34725905]
[1750554705218,10.448,2300.6,2300.3,4.34725905]
[1750554705219,10.448,2300.6,2300.5,4.34688111]
[1750554705405,12.638,2300.6,2300.5,4.34688111]
[1750554706001,10.448,2300.6,2300.5,4.34688111]
[1750554707030,10.448,2300.6,2300.3,4.34712116]
[1750554707223,11.83163279,2300.6,2300.4,4.34703694]
[1750554707426,11.83163279,2300.6,2300.1,4.34753428]
[1750554707427,7.72987209,2300.5,2300.1,4.34753428]
[1750554707622,7.72987209,2300.5,2299.7,4.34828245]
[1750554707623,7.72987209,2300.5,2299.6,0.7555]
[1750554707815,15.72806454,2300.4,2299.8,4.34805271]
[1750554708012,0.04387209,2300.3,2300.0,4.34770699]
[1750554708252,0.04387209,2300.3,2299.8,4.34806731]
[1750554708253,12.19,2300.2,2299.8,4.34819456]
[1750554708442,7.73087209,2300.1,2299.8,4.34819456]
[1750554708638,40.0,2299.8,2299.5,4.34864689]
[1750554708934,19.91787209,2299.7,2299.5,4.34864689]
[1750554709140,19.91787209,2299.7,2299.3,4.34897161]
[1750554709141,19.874,2299.7,2299.3,4.34897161]
[1750554709298,0.04387209,2299.6,2299.4,4.34881184]
[1750554709504,19.874,2299.7,2299.2,4.3928289]
[1750554709706,19.874,2299.7,2299.6,4.34858236]
[1750554709903,19.874,2299.7,2299.3,3.35493858]
[1750554710345,0.04387209,2299.6,2299.3,7.70408756]
[1750554711139,2.0356593,2299.6,2299.0,4.34971726]
[1750554711335,0.04387209,2299.6,2299.4,4.34886367]
[1750554712257,0.04387209,2299.6,2299.3,4.34908743]
[1750554712455,0.59387209,2299.6,2299.5,4.34877147]
[1750554712754,0.55,2299.6,2299.4,4.34884512]
[1750554713056,0.59387209,2299.6,2299.4,4.34884512]
[1750554713352,0.04387209,2299.6,2299.4,4.34888974]
[1750554713872,0.04387209,2299.6,2299.5,4.34877147]
[1750554714166,9.872,2299.5,2299.4,4.34890658]
[1750554716167,9.872,2299.5,2299.3,4.34906699]
[1750554716467,2.19,2299.4,2299.3,4.34914974]
[1750554717338,2.19,2299.4,2299.3,7.70408832]
[1750554717772,2.19,2299.4,2299.3,3.35493858]
[1750554717948,2.19,2299.4,2299.3,7.70408832]
[1750554719151,2.23387209,2299.4,2299.3,3.35493858]
[1750554719962,0.8317,2299.3,2299.0,4.34961229]
[1750554720168,0.04387209,2299.2,2299.1,4.34952807]
[1750554720380,0.8317,2299.3,2299.2,4.3493389]
[1750554720543,9.838,2299.3,2299.2,4.3493389]
[1750554720744,0.55,2299.5,2299.2,4.3493389]
[1750554720944,9.87987209,2299.4,2299.1,4.34945456]
[1750554721150,9.836,2299.4,2299.0,7.70459303]
[1750554721351,0.04387209,2299.3,2299.0,7.70459303]
[1750554721872,2.19,2299.2,2299.0,7.70453607]
[1750554722089,2.19,2299.2,2299.0,7.70456636]
[1750554722295,2.23387209,2299.2,2299.0,7.70456636]
[1750554722491,2.19,2299.2,2299.1,4.34952807]
[1750554722693,0.8317,2299.6,2299.0,9.67054017]
[1750554722878,2.19,2299.5,2299.4,4.34886928]
[1750554723493,2.78387209,2299.5,2299.3,4.34913465]
[1750554723686,2.23387209,2299.5,2299.4,4.34896059]
[1750554723882,2.19,2299.5,2299.4,4.34896059]
[1750554725184,0.8302,2299.4,2299.1,7.70432792]
[1750554725380,0.04387209,2299.3,2299.1,7.7043316]
[1750554725783,0.04387209,2299.4,2299.3,4.34914974]
[1750554726078,0.04387209,2299.4,2298.9,3.35493858]
[1750554726281,0.04387209,2299.4,2299.2,4.34933495]
[1750554726909,0.04387209,2299.4,2298.8,3.35493858]
[1750554727112,0.04387209,2299.4,2018.0,0.15]
[1750554727113,10.0,2299.0,2298.5,3.35493858]
[1750554727313,30.0,2298.8,2298.3,0.8052]
[1750554727478,0.87407209,2298.7,2298.0,2.24039889]
[1750554727683,7.628,2298.6,2298.0,0.8052]
[1750554728008,0.04387209,2298.5,2297.6,0.43809755]
[1750554728174,2.155,2298.6,2298.5,4.35066347]
[1750554728369,2.155,2298.7,2298.5,4.35066347]
[1750554728574,2.155,2298.7,2298.6,4.3504742]
[1750554728828,2.155,2298.7,2298.6,5.22058797]
[1750554728991,2.155,2298.7,2298.6,4.3504742]
[1750554730812,10.0,2299.3,2299.1,4.34933984]
[1750554731009,2.155,2299.2,2299.1,4.34933984]
[1750554731413,0.04387209,2299.2,2298.9,4.3497643]
[1750554731614,9.784,2299.2,2299.1,4.34952807]
[1750554732417,2.155,2299.2,2299.1,4.34952807]
[1750554733018,2.155,2299.2,2299.0,4.34954196]
[1750554733213,2.155,2299.2,2299.1,4.34952807]
[1750554734411,10.447,2299.4,2299.3,4.34914974]
[1750554734579,2.155,2299.7,2299.6,4.3484162]
[1750554734782,2.155,2299.7,2299.0,7.628]
[1750554734976,0.04387209,2299.6,2299.0,7.628]
[1750554735208,7.66887209,2299.6,2299.4,4.34893459]
[1750554735376,0.04387209,2299.6,2299.5,4.34877147]
[1750554735573,7.625,2299.6,2299.5,4.34877147]
[1750554736899,2.155,2299.7,2299.6,4.34858236]
[1750554737184,2.155,2300.2,2300.1,4.34763705]
[1750554738292,2.19887209,2300.2,2299.5,8.4927702]
[1750554738491,2.19887209,2300.2,2300.1,4.34763705]
[1750554738694,10.448,2300.3,2300.2,4.34744804]
[1750554738893,10.448,2300.3,2299.5,0.8697702]
[1750554739230,0.75,2300.1,2299.9,4.34798903]
[1750554739520,0.75,2300.1,2299.5,0.8697702]
[1750554739521,0.04387209,2300.2,2300.1,4.34763705]
[1750554739685,2.155,2300.4,2300.3,4.34725905]
[1750554739888,2.155,2300.8,2300.6,4.34669216]
[1750554742142,2.155,2300.8,2300.6,4.39015489]
[1750554742425,2.155,2300.8,2300.6,5.34330555]
[1750554742587,12.603,2301.2,2300.6,5.29984282]
[1750554743086,0.86927209,2301.1,2300.6,4.34669216]
[1750554743286,10.0,2301.0,2300.6,4.34669216]
[1750554743483,0.04387209,2300.9,2300.6,4.34669216]
[1750554743686,12.603,2301.2,2300.6,4.34669216]
[1750554743895,0.04387209,2301.1,2300.6,4.34669216]
[1750554744303,12.603,2301.2,2300.6,4.34669216]
[1750554744635,0.04387209,2301.1,2300.6,4.34669216]
[1750554745208,10.04387209,2301.1,2300.6,4.34669216]
[1750554745446,3.30823484,2300.7,2300.4,4.34698093]
[1750554745593,3.35210693,2300.7,2300.6,4.34669216]
[1750554746009,3.30823484,2300.7,2300.6,4.34669216]
[1750554746552,3.30823484,2300.7,2300.4,4.3469203]
[1750554746753,30.0,2300.5,2300.1,4.34747559]
[1750554746903,7.67887209,2300.4,2300.3,4.34721009]
[1750554747112,7.67887209,2300.4,2300.2,4.34738283]
[1750554747305,0.04387209,2300.4,2300.2,4.34738283]
[1750554747552,10.8292,2300.6,2300.4,4.34707007]
[1750554747851,10.8292,2300.6,2300.5,4.34688111]
[1750554748054,10.94123484,2300.7,2300.6,4.34669216]
[1750554748222,20.94123484,2300.7,2300.6,4.34669216]
[1750554748550,10.94123484,2300.7,2300.6,4.34669216]
[1750554749160,1.15423484,2300.7,2300.6,4.34669216]
[1750554751832,1.15423484,2300.7,2300.3,4.34716156]
[1750554751833,9.65530693,2300.7,2300.3,4.34716156]
[1750554752019,9.94225832,2300.7,2300.3,4.34716156]
[1750554752873,9.94225832,2300.7,2299.8,4.34817616]
[1750554752874,0.55,2300.3,2299.8,4.34817616]
[1750554753047,4.34782608,2300.0,2299.3,4.34905506]
[1750554753237,4.34782608,2300.0,2298.9,0.8063]
[1750554753238,0.8292,2299.8,2298.9,0.8063]
[1750554753493,30.0,2299.5,2298.9,5.15615932]
[1750554753661,0.04387209,2299.4,2299.1,4.34941939]
[1750554753846,40.0,2299.5,2299.0,4.34971726]
[1750554754052,0.04387209,2299.4,2299.2,4.34919535]
[1750554754357,30.0,2299.5,2299.2,4.34919535]
[1750554754548,0.04387209,2299.4,2299.2,4.34919535]
[1750554754753,9.785,2299.7,2298.9,3.35493858]
[1750554754754,30.0,2299.5,2298.9,3.35493858]
[1750554754924,0.04387209,2299.4,2299.1,4.34947013]
[1750554755345,0.7901,2299.3,2299.0,4.34970628]
[1750554755626,2.154,2299.2,2299.1,4.34939505]
[1750554755960,2.154,2299.2,2299.1,5.15599505]
[1750554757259,2.154,2299.2,2299.1,8.51093363]
[1750554757485,7.622,2299.8,2299.1,8.51093363]
[1750554757486,17.622,2299.8,2299.7,4.34839326]
[1750554757628,9.776,2299.8,2299.7,4.34839326]
[1750554758261,30.7901,2299.7,2299.5,3.35493858]
[1750554758471,0.04387209,2299.6,2299.5,3.35493858]
[1750554758626,2.6548693,2299.6,2299.2,4.34918887]
[1750554758826,10.442,2300.0,2299.3,4.20503195]
[1750554759062,12.591,2300.0,2299.9,4.34801513]
[1750554759823,1.15423484,2300.7,2300.6,4.34669216]
[1750554760031,5.91323484,2300.7,2300.6,4.34669216]
[1750554760431,3.30323484,2300.7,2300.6,4.34669216]
[1750554760828,1.15423484,2300.7,2300.6,5.21604927]
[1750554761471,1.15423484,2300.7,2300.6,5.25951165]
[1750554761629,1.15423484,2300.7,2300.6,5.21604927]
[1750554761829,1.15423484,2300.7,2300.6,5.25950781]
[1750554762161,1.15423484,2300.7,2300.6,5.25950569]
[1750554762349,1.15423484,2300.7,2300.6,5.21604927]
[1750554763260,1.15423484,2300.7,2300.6,4.34669216]
[1750554763973,1.15423484,2300.7,2300.6,4.39015569]
[1750554764149,1.15423484,2300.7,2300.6,5.15449216]
[1750554764678,1.15423484,2300.7,2300.6,5.19795228]
[1750554764969,1.15423484,2300.7,2300.6,5.15449216]
[1750554765342,1.15423484,2300.7,2300.6,6.86662927]
[1750554765972,1.15423484,2300.7,2300.6,6.91008941]
[1750554766170,1.15423484,2300.7,2300.6,6.86662927]
[1750554766671,1.15423484,2300.7,2300.6,6.91008876]
[1750554767030,1.15423484,2300.7,2300.6,20.26502734]
[1750554767269,1.15423484,2300.7,2300.6,20.22156785]
[1750554767566,2.148,2301.3,2301.2,4.34555883]
[1750554767778,2.148,2301.3,2301.2,7.70049741]
[1750554767944,0.8286,2301.8,2301.6,4.34480361]
[1750554768152,2.148,2301.7,2301.6,4.34480361]
[1750554769985,7.618,2302.2,2302.1,4.34385995]
[1750554769986,2.148,2302.2,2302.1,4.34385995]
[1750554770138,2.148,2302.2,2302.1,7.69879853]
[1750554770342,0.8183,2302.7,2302.1,4.99362701]
[1750554770544,0.8183,2302.7,2301.9,4.34406549]
[1750554770545,2.19187209,2302.6,2302.0,3.35493858]
[1750554770778,2.19187209,2302.6,2302.5,4.34310532]
[1750554770779,2.148,2302.6,2302.5,4.34310532]
[1750554772246,2.19187209,2302.6,2302.4,4.34323392]
[1750554772443,1.42175401,2302.8,2302.7,4.3427281]
[1750554772777,2.148,2303.2,2303.1,4.34197386]
[1750554773348,2.148,2303.2,2302.7,0.7964]
[1750554773544,0.04387209,2303.1,2303.0,4.34216239]
[1750554774074,0.2630593,2303.1,2302.8,4.34235554]
[1750554774279,0.04387209,2303.1,2303.0,4.34216239]
[1750554774478,0.55,2303.1,2302.8,4.34243524]
[1750554774677,0.7512,2302.9,2302.8,4.34243524]
[1750554775265,0.55,2302.8,2302.0,0.7874]
[1750554775576,0.55,2302.8,2301.5,3.35493858]
[1750554775577,1.3012,2302.2,2301.9,4.34422383]
[1750554775775,9.80587209,2302.1,2301.9,4.34422383]
[1750554776076,30.0,2302.0,2301.8,4.34433535]
[1750554776376,30.0,2302.0,2301.2,5.55012095]
[1750554776377,0.55,2301.8,2301.2,4.34543722]
[1750554776582,0.79507209,2301.7,2301.4,4.34506799]
[1750554776779,2.147,2301.6,2301.5,4.34499239]
[1750554777279,2.147,2301.6,2301.4,4.34514575]
[1750554777459,0.04387209,2301.5,2301.4,4.34514575]
[1750554778278,0.7512,2301.7,2301.6,4.34480361]
[1750554778451,2.147,2301.5,2301.4,4.3451188]
[1750554778785,2.19087209,2301.5,2301.4,4.3451188]
[1750554779272,2.19087209,2301.5,2301.4,4.34518119]
[1750554779473,2.19087209,2301.5,2301.3,4.34521778]
[1750554779692,2.19087209,2301.5,2301.3,4.34534418]
[1750554779847,2.19087209,2301.5,2301.4,4.34518119]
[1750554780043,2.19087209,2301.5,2300.9,4.34612542]
[1750554780281,10.55,2301.4,2300.6,1.71213711]
[1750554780473,0.55,2301.1,2300.2,0.7874]
[1750554780674,2.147,2301.0,2300.9,4.34612542]
[1750554780873,0.7512,2301.5,2301.2,4.34555883]
[1750554781056,10.86687427,2302.3,2301.3,4.34537]
[1750554781057,2.147,2301.4,2301.3,4.34537]
[1750554782052,0.7512,2302.0,2301.4,4.34513702]
[1750554782260,0.7512,2302.0,2301.9,4.34423736]
[1750554782488,9.761,2302.0,2301.9,4.38768055]
[1750554782646,9.761,2302.0,2301.9,4.34423736]
[1750554783858,2.147,2302.0,2301.9,4.34423736]
[1750554784054,2.147,2302.0,2301.9,4.38767496]
[1750554784250,2.147,2302.0,2301.9,4.34423736]
[1750554784655,2.147,2302.0,2301.9,5.21310371]
[1750554785183,2.147,2302.1,2302.0,4.34400373]
[1750554786109,10.437,2302.3,2302.1,4.343691]
[1750554786386,2.147,2302.2,2302.1,4.343691]
[1750554787093,10.437,2302.3,2302.2,4.34367127]
[1750554787294,12.584,2302.3,2302.2,4.34367127]
[1750554787899,10.8204,2302.2,2301.4,0.8303]
[1750554788187,10.0,2302.0,2301.6,4.34468994]
[1750554788492,10.0,2302.0,2301.9,4.34423736]
[1750554788793,19.759,2302.0,2301.0,10.8303]
[1750554788955,19.759,2302.0,2301.3,4.34537]
[1750554789151,19.759,2302.0,2301.8,4.34430569]
[1750554789659,0.04387209,2301.9,2301.8,4.3444261]
[1750554789862,0.04387209,2301.9,2301.6,4.34480361]
[1750554790272,0.04387209,2301.9,2301.8,4.3444261]
[1750554790590,19.759,2302.0,2301.9,4.34423736]
[1750554791296,9.759,2302.0,2301.9,4.34423736]
[1750554791590,2.146,2302.0,2301.9,4.34423736]
[1750554792297,10.437,2302.3,2302.2,4.34367127]
[1750554792501,12.583,2302.3,2302.2,4.34367127]
[1750554793996,12.583,2302.3,2301.9,4.22380493]
[1750554794164,12.583,2302.3,2302.1,4.34370759]
[1750554794371,13.3396,2302.3,2302.0,4.34395708]
[1750554794571,13.3396,2302.3,2301.4,4.34504117]
[1750554794572,17.65587209,2302.2,2301.5,3.35493858]
[1750554794791,17.612,2302.2,2301.8,4.34433018]
[1750554794991,0.04387209,2302.1,2301.8,4.34433018]
[1750554795197,0.04387209,2302.1,2301.9,4.34409744]
[1750554795500,0.04387209,2302.1,2301.5,3.35493858]
[1750554795501,17.612,2302.2,2302.1,4.34385995]
[1750554795692,10.0,2302.2,2302.1,4.34385995]
[1750554796217,10.437,2302.3,2302.2,4.34367127]
[1750554796408,11.1936,2302.3,2302.0,7.69882544]
[1750554796722,7.65587209,2302.2,2302.1,4.34381299]
[1750554797013,10.437,2302.3,2302.2,4.34367127]
[1750554797171,12.583,2302.3,2302.2,4.34367127]
[1750554799869,10.437,2302.3,2302.2,4.34367127]
[1750554800211,12.583,2302.3,2302.2,4.34367127]
[1750554801219,12.583,2302.3,2302.1,4.34385196]
[1750554801220,0.7566,2302.2,2302.1,4.34375249]
[1750554801427,20.194,2302.3,2302.2,4.34367127]
[1750554802094,10.55,2302.2,2301.7,4.34446198]
[1750554802272,0.55,2301.9,2301.3,3.35493858]
[1750554802476,9.80087209,2301.8,2301.6,4.34477598]
[1750554802682,9.80087209,2301.8,2301.5,4.34491457]
[1750554802683,9.757,2301.8,2301.5,4.34491457]
[1750554802894,0.7566,2301.6,2301.2,4.34545028]
[1750554803095,7.65487209,2301.5,2301.2,4.34545028]
[1750554803296,7.65487209,2301.5,2301.3,4.34524612]
[1750554803505,7.65487209,2301.5,2301.2,4.34546221]
[1750554803883,7.65487209,2301.5,2301.1,4.34574578]
[1750554804080,7.65487209,2301.5,2301.2,4.34545711]
[1750554804302,7.65487209,2301.5,2301.2,4.34552409]
[1750554804507,7.65487209,2301.5,2301.2,4.34553694]
[1750554804812,40.0,2301.4,2301.2,4.34553694]
[1750554805026,0.04387209,2301.3,2301.2,4.34553694]
[1750554805175,10.04387209,2301.4,2301.2,4.34553694]
[1750554805376,0.04387209,2301.3,2301.2,4.34553694]
[1750554805613,0.04387209,2301.4,2301.2,4.34553694]
[1750554806047,0.04387209,2301.4,2301.3,4.34537]
[1750554806392,0.04387209,2301.4,2301.2,4.3454643]
[1750554806622,2.146,2301.3,2301.1,4.34565752]
[1750554807226,2.146,2301.3,2301.2,4.34555883]
[1750554807515,2.146,2301.3,2301.1,4.34570947]
[1750554807730,8.96197209,2301.2,2300.3,0.8255]
[1750554807922,10.04387209,2301.1,2300.4,3.35493858]
[1750554808229,17.611,2301.1,2300.9,4.34596136]
[1750554808517,0.7571,2301.2,2301.0,4.34593654]
[1750554808717,8.3681,2301.2,2301.1,4.34574768]
[1750554808887,10.0,2301.1,2300.9,4.34600092]
[1750554809215,2.146,2301.0,2300.6,3.35493858]
[1750554809421,2.146,2301.0,2300.9,4.34605045]
[1750554809745,2.18987209,2301.0,2300.7,4.34644035]
[1750554810125,2.146,2301.0,2300.6,3.35493858]
[1750554810284,2.146,2301.0,2300.9,4.34612542]
[1750554810823,0.7571,2301.2,2301.1,4.34574768]
[1750554810988,2.146,2301.5,2301.4,4.34518119]
[1750554811187,2.146,2301.5,2301.3,4.3452796]
[1750554811403,2.146,2301.5,2301.4,4.34518119]
[1750554816004,2.18987209,2301.5,2301.4,4.34518119]
[1750554817408,2.146,2301.5,2301.4,4.34518119]
[1750554818947,0.7954,2301.3,2301.0,4.34583633]
[1750554819115,8.20387209,2301.2,2300.8,4.34622782]
[1750554819435,8.16,2301.2,2300.9,4.34608656]
[1750554819637,0.04387209,2301.1,2301.0,4.34593654]
[1750554819844,7.61,2301.2,2301.1,4.34574768]
[1750554820139,0.7954,2301.3,2300.6,4.34653381]
[1750554820312,9.754,2301.2,2301.0,4.34582556]
[1750554820507,9.754,2301.2,2300.9,4.34602798]
[1750554820712,0.04387209,2301.1,2301.0,4.34586092]
[1750554821041,9.754,2301.2,2301.0,4.34586092]
[1750554821846,10.304,2301.2,2301.1,4.34574768]
[1750554822345,10.304,2301.2,2301.0,4.34584015]
[1750554822644,10.304,2301.2,2300.9,4.34602489]
[1750554822857,0.8072,2300.9,2300.1,4.16213858]
[1750554823025,2.144,2300.8,2300.7,4.34650323]
[1750554823229,9.754,2300.8,2300.7,4.34650323]
[1750554824142,2.144,2300.8,2300.7,4.34650323]
[1750554824643,9.753,2300.8,2300.6,4.34656851]
[1750554825215,9.753,2300.8,2300.3,4.34725121]
[1750554825216,1.3634,2300.6,2300.3,4.34725121]
[1750554825415,0.04387209,2300.5,2300.4,4.34689871]
[1750554825644,1.3634,2300.6,2300.4,4.34689871]
[1750554825645,1.40727209,2300.6,2300.4,4.34689871]
[1750554826536,1.40727209,2300.6,2300.5,4.34688111]
[1750554826741,1.3634,2300.6,2300.5,4.34688111]
[1750554826937,10.0,2300.7,2300.6,4.34669216]
[1750554828170,12.582,2301.1,2301.0,4.34593654]
[1750554828324,7.609,2301.6,2301.5,4.34491595]
[1750554828520,9.79787209,2301.6,2301.5,4.34491595]
[1750554828734,9.754,2301.6,2301.5,4.34491595]
[1750554829152,19.754,2301.6,2301.4,4.34508902]
[1750554829323,9.754,2301.6,2301.5,4.34499239]
[1750554829520,2.145,2301.6,2301.5,4.34499239]
[1750554830965,12.584,2302.0,2301.9,4.34423736]
[1750554831255,2.145,2302.4,2301.7,5.14869091]
[1750554831470,10.7741,2302.2,2301.4,0.8041]
[1750554831647,0.55,2302.0,2301.6,4.34469952]
[1750554831956,9.753,2301.9,2301.8,4.3444261]
[1750554832123,2.145,2301.9,2301.7,4.3445013]
[1750554832322,2.145,2301.9,2301.8,4.3444261]
[1750554833030,2.18887209,2301.9,2301.6,4.34471907]
[1750554833228,2.18887209,2301.9,2301.1,10.8041]
[1750554833535,0.7741,2301.7,2301.4,4.34507485]
[1750554833865,0.55,2301.5,2301.0,4.34577355]
[1750554834150,11.99575004,2301.6,2301.1,4.34573384]
[1750554834151,0.55,2301.3,2301.1,4.34573384]
[1750554834329,8.20087209,2301.3,2301.1,4.34574768]
[1750554834532,8.157,2301.3,2301.1,4.34574768]
[1750554834952,0.7881,2301.1,2300.7,4.34650323]
[1750554835139,0.7881,2301.1,2300.9,4.34610991]
[1750554835447,0.7881,2301.1,2301.0,4.34593654]
[1750554835860,0.7881,2301.1,2300.9,4.34610678]
[1750554836264,0.83197209,2301.1,2300.9,4.34610678]
[1750554836442,0.83197209,2301.1,2300.7,4.34636774]
[1750554836643,17.606,2301.0,2300.6,4.34658223]
[1750554836838,10.55,2300.8,2300.4,4.34689433]
[1750554837145,0.04387209,2300.7,2300.5,4.34678688]
[1750554837966,0.04387209,2300.7,2300.4,4.34697564]
[1750554838263,7.64987209,2300.7,2300.4,4.34697564]
[1750554838467,7.64987209,2300.7,2300.4,4.34707007]
[1750554838468,0.7881,2300.5,2300.4,4.34707007]
[1750554838627,0.83197209,2300.5,2300.3,4.34714961]
[1750554838832,0.55,2300.7,2300.4,4.34707007]
[1750554839032,0.59387209,2300.7,2300.4,4.34689536]
[1750554839233,1.9464693,2300.7,2300.4,4.34689536]
[1750554839564,1.9464693,2300.7,2299.7,0.7913]
[1750554839782,1.9464693,2300.7,2300.2,4.34729035]
[1750554840154,10.0,2300.5,2299.9,4.34801513]
[1750554840342,12.145,2300.5,2300.3,4.3470731]
[1750554840656,0.04387209,2300.4,2300.3,4.3470731]
[1750554841185,0.7881,2300.8,2299.7,12.7456675]
[1750554841186,0.7881,2300.8,2300.6,4.34669216]
[1750554841329,2.145,2301.3,2301.2,4.34552438]
[1750554842368,2.145,2301.3,2300.8,3.35493858]
[1750554842667,0.04387209,2301.2,2301.0,4.34585889]
[1750554842831,0.55,2301.1,2301.0,4.34585889]
[1750554843032,1.3396,2301.1,2301.0,4.34585889]
[1750554843576,10.0,2301.2,2301.1,4.34574768]
[1750554843742,0.55,2301.4,2301.3,4.34537]
[1750554843743,0.7896,2301.4,2301.3,4.34537]
[1750554844061,10.437,2301.8,2301.4,4.34518119]
[1750554844062,2.145,2301.5,2301.4,4.34518119]
[1750554845665,2.145,2301.5,2301.0,0.7913]
[1750554845666,2.18887209,2301.5,2301.0,0.7913]
[1750554846167,2.73887209,2301.5,2301.4,4.34518119]
[1750554846364,2.18887209,2301.5,2301.4,4.34518119]
[1750554846556,2.145,2301.5,2301.4,4.34518119]
[1750554847069,2.145,2301.5,2301.3,4.3453409]
[1750554847070,2.18887209,2301.5,2301.3,4.34524915]
[1750554847303,4.2471193,2301.5,2301.3,4.34524915]
[1750554847478,4.2471193,2301.5,2301.4,4.34518119]
[1750554847678,2.145,2301.5,2301.4,4.34518119]
[1750554848252,2.18887209,2301.5,2301.4,4.34518119]
[1750554848462,2.145,2301.5,2301.4,4.34518119]
[1750554849059,2.18887209,2301.5,2301.4,4.34518119]
[1750554849455,2.145,2301.5,2301.4,4.34518119]
[1750554850480,10.437,2301.8,2301.4,4.34512795]
[1750554850667,20.437,2301.8,2301.7,4.34461484]
[1750554851947,2.613,2303.7,2301.3,0.7665]
[1750554851948,0.7638,2302.3,2301.3,0.7665]
[1750554852162,2.18287209,2302.2,2302.1,4.34385995]
[1750554852360,20.6285393,2302.2,2302.1,4.34385995]
[1750554852566,0.55,2302.1,2301.9,4.34409713]
[1750554852786,0.59387209,2302.0,2301.9,4.34409713]
[1750554852980,0.59387209,2302.0,2301.7,4.34448969]
[1750554853182,0.59387209,2302.0,2301.4,7.601]
[1750554853381,0.04387209,2302.0,2301.9,4.34423736]
[1750554853583,2.139,2302.2,2302.1,4.34385995]
[1750554855089,2.139,2302.6,2302.5,4.34310532]
[1750554855262,12.139,2302.6,2302.5,4.34310532]
[1750554855667,12.689,2302.6,2302.5,4.34310532]
[1750554856093,10.55,2302.5,2301.9,4.34423736]
[1750554856388,0.55,2302.3,2302.1,4.34368747]
[1750554856588,0.59387209,2302.2,2302.1,4.34368747]
[1750554856791,0.7831,2302.4,2302.3,4.3434826]
[1750554856960,18.9321,2302.4,2302.3,4.3434826]
[1750554857163,11.3331,2302.4,2302.3,4.3434826]
[1750554857694,10.55,2302.4,2302.3,4.3434826]
[1750554857908,2.139,2302.6,2302.5,4.34310532]
[1750554858399,2.139,2302.6,2302.4,4.34326966]
[1750554858558,0.04387209,2302.5,2302.4,4.34326966]
[1750554859292,2.139,2302.6,2302.5,4.34310532]
[1750554860992,2.139,2302.6,2302.2,3.35493858]
[1750554861160,2.139,2302.6,2302.5,4.34310532]
[1750554861161,2.18287209,2302.6,2302.5,4.34310532]
[1750554861362,2.139,2302.6,2302.5,4.34310532]
[1750554861579,10.0,2302.7,2302.6,4.3429167]
[1750554861865,10.0,2302.7,2302.5,4.34310532]
[1750554862094,10.0,2302.7,2302.6,4.3429167]
[1750554862386,0.55,2302.6,2302.4,4.34319764]
[1750554862566,2.138,2302.5,2302.4,4.34319764]